[Event "Early-Titled-Tuesday-Blitz-February-13-2024"]
[Site "Chess.com"]
[Date "2024.02.13"]
[Round "9"]
[White "JEIGOTH"]
[Black "Inepton_Fermion"]
[Result "1-0"]
[WhiteElo "2302"]
[BlackElo "2399"]
[TimeControl "180+1"]
[EndTime "9:48:13 PST"]
[Termination "JEIGOTH won on time"]

1. d4 {[%clk 0:02:54.8]} 1... g6 {[%clk 0:03:00.9]} 2. Nf3 {[%clk 0:02:51.5]}
2... Bg7 {[%clk 0:03:00.6]} 3. e3 {[%clk 0:02:46.5]} 3... d6 {[%clk 0:02:57.3]}
4. Bd3 {[%clk 0:02:43.2]} 4... Nc6 {[%clk 0:02:57.5]} 5. O-O {[%clk 0:02:42.1]}
5... e5 {[%clk 0:02:57.9]} 6. c3 {[%clk 0:02:40.5]} 6... f5 {[%clk 0:02:55.4]}
7. e4 {[%clk 0:02:32.5]} 7... fxe4 {[%clk 0:02:45.7]} 8. Bxe4 {[%clk 0:02:31.9]}
8... exd4 {[%clk 0:02:45.5]} 9. Nxd4 {[%clk 0:02:30.7]} 9... Nxd4 {[%clk
0:02:41.3]} 10. cxd4 {[%clk 0:02:30.2]} 10... Nf6 {[%clk 0:02:39.7]} 11. Re1
{[%clk 0:02:23.3]} 11... O-O {[%clk 0:02:38.9]} 12. Bf3 {[%clk 0:02:23.6]} 12...
Bf5 {[%clk 0:02:35.3]} 13. Nc3 {[%clk 0:02:21.7]} 13... c6 {[%clk 0:02:34.4]}
14. d5 {[%clk 0:02:18.6]} 14... c5 {[%clk 0:02:31.9]} 15. Bf4 {[%clk 0:02:18]}
15... a6 {[%clk 0:02:25.7]} 16. a4 {[%clk 0:02:14.1]} 16... Qd7 {[%clk
0:02:09.9]} 17. Qd2 {[%clk 0:02:08.9]} 17... Rae8 {[%clk 0:02:09]} 18. Bh6
{[%clk 0:02:06.7]} 18... Ng4 {[%clk 0:02:02.9]} 19. Bxg7 {[%clk 0:02:04.8]}
19... Qxg7 {[%clk 0:02:03.4]} 20. h3 {[%clk 0:02:00.5]} 20... Ne5 {[%clk
0:02:03.4]} 21. Be4 {[%clk 0:02:00.5]} 21... Nc4 {[%clk 0:02:01]} 22. Qc2 {[%clk
0:01:57.2]} 22... Qe5 {[%clk 0:01:25.3]} 23. Re2 {[%clk 0:01:32.9]} 23... Bxe4
{[%clk 0:01:11.5]} 24. Rxe4 {[%clk 0:01:33.8]} 24... Qf5 {[%clk 0:01:10.3]} 25.
Rae1 {[%clk 0:01:32.6]} 25... Rxe4 {[%clk 0:00:57.8]} 26. Rxe4 {[%clk
0:01:32.5]} 26... Ne5 {[%clk 0:00:57.6]} 27. Qe2 {[%clk 0:01:23.2]} 27... Qf7
{[%clk 0:00:47.4]} 28. f4 {[%clk 0:01:18.7]} 28... Nd7 {[%clk 0:00:44.9]} 29.
Re7 {[%clk 0:01:18.6]} 29... Qf5 {[%clk 0:00:45.5]} 30. Qe6+ {[%clk 0:01:10.5]}
30... Qxe6 {[%clk 0:00:45.5]} 31. dxe6 {[%clk 0:01:10.5]} 31... Nb6 {[%clk
0:00:34.2]} 32. Rxb7 {[%clk 0:01:08.1]} 32... Nc4 {[%clk 0:00:34.7]} 33. e7
{[%clk 0:01:03.1]} 33... Re8 {[%clk 0:00:32.4]} 34. Nd5 {[%clk 0:01:02.2]} 34...
Kf7 {[%clk 0:00:32.9]} 35. Kf2 {[%clk 0:00:54.5]} 35... Na5 {[%clk 0:00:19.5]}
36. Rb6 {[%clk 0:00:53.6]} 36... Nc4 {[%clk 0:00:17.5]} 37. Rxa6 {[%clk
0:00:48.6]} 37... Rb8 {[%clk 0:00:18.1]} 38. Ra7 {[%clk 0:00:34.7]} 38... Ke6
{[%clk 0:00:13.6]} 39. Nc7+ {[%clk 0:00:34]} 39... Kd7 {[%clk 0:00:01.5]} 40.
Na6+ {[%clk 0:00:31.9]} 1-0

[Event "Early-Titled-Tuesday-Blitz-February-13-2024"]
[Site "Chess.com"]
[Date "2024.02.13"]
[Round "9"]
[White "FREDERICKtheMATE"]
[Black "ChessLover0108"]
[Result "1-0"]
[WhiteElo "2708"]
[BlackElo "2987"]
[TimeControl "180+1"]
[EndTime "9:48:14 PST"]
[Termination "FREDERICKtheMATE won on time"]

1. d4 {[%clk 0:03:00.9]} 1... Nf6 {[%clk 0:02:54.5]} 2. c4 {[%clk 0:03:01.2]}
2... e6 {[%clk 0:02:55.1]} 3. Nf3 {[%clk 0:03:01.7]} 3... d5 {[%clk 0:02:55.3]}
4. Nc3 {[%clk 0:03:02]} 4... Be7 {[%clk 0:02:55.5]} 5. Bf4 {[%clk 0:03:00.9]}
5... O-O {[%clk 0:02:55.4]} 6. e3 {[%clk 0:03:01.2]} 6... Nbd7 {[%clk
0:02:55.9]} 7. c5 {[%clk 0:02:59.9]} 7... Nh5 {[%clk 0:02:55.9]} 8. Bg3 {[%clk
0:02:59.5]} 8... b6 {[%clk 0:02:45.3]} 9. b4 {[%clk 0:02:55.6]} 9... a5 {[%clk
0:02:45.3]} 10. a3 {[%clk 0:02:54]} 10... c6 {[%clk 0:02:44]} 11. Bd3 {[%clk
0:02:50.2]} 11... Ba6 {[%clk 0:02:33.5]} 12. Bxa6 {[%clk 0:02:50]} 12... Rxa6
{[%clk 0:02:34.4]} 13. O-O {[%clk 0:02:49.8]} 13... Nxg3 {[%clk 0:02:29.1]} 14.
hxg3 {[%clk 0:02:49.2]} 14... Qa8 {[%clk 0:02:29.3]} 15. Rb1 {[%clk 0:02:43.5]}
15... axb4 {[%clk 0:02:11.2]} 16. axb4 {[%clk 0:02:43.4]} 16... b5 {[%clk
0:02:06.2]} 17. Qc2 {[%clk 0:02:39.7]} 17... Qa7 {[%clk 0:02:03.5]} 18. Nd2
{[%clk 0:02:32]} 18... Ra8 {[%clk 0:02:00.5]} 19. f4 {[%clk 0:02:30.8]} 19...
Nf6 {[%clk 0:01:39.6]} 20. Nb3 {[%clk 0:02:19.9]} 20... Bd8 {[%clk 0:01:34.6]}
21. Kf2 {[%clk 0:02:08.3]} 21... Ng4+ {[%clk 0:01:13.5]} 22. Ke2 {[%clk
0:02:07.2]} 22... Ra3 {[%clk 0:01:11.9]} 23. Ra1 {[%clk 0:02:01.9]} 23... Qb7
{[%clk 0:01:01]} 24. Qb2 {[%clk 0:01:57.9]} 24... R3a4 {[%clk 0:00:36.5]} 25.
Nxa4 {[%clk 0:01:44.5]} 25... bxa4 {[%clk 0:00:37.4]} 26. Nc1 {[%clk 0:01:44.5]}
26... Qb5+ {[%clk 0:00:31.7]} 27. Nd3 {[%clk 0:01:44.5]} 27... Nf6 {[%clk
0:00:27.7]} 28. Qc2 {[%clk 0:01:39.6]} 28... Ne4 {[%clk 0:00:26.9]} 29. Kf3
{[%clk 0:01:37.2]} 29... f5 {[%clk 0:00:22.9]} 30. Ra3 {[%clk 0:01:25.8]} 30...
g5 {[%clk 0:00:21.4]} 31. Rfa1 {[%clk 0:01:25.3]} 31... g4+ {[%clk 0:00:17.9]}
32. Ke2 {[%clk 0:01:25.2]} 32... Nxg3+ {[%clk 0:00:18.5]} 33. Kf2 {[%clk
0:01:23.3]} 33... Ne4+ {[%clk 0:00:12.6]} 34. Kg1 {[%clk 0:01:23.2]} 34... Bh4
{[%clk 0:00:06.3]} 35. Rxa4 {[%clk 0:01:20.9]} 35... Rxa4 {[%clk 0:00:06.9]} 36.
Rxa4 {[%clk 0:01:21.3]} 36... Kg7 {[%clk 0:00:05.5]} 37. Ra5 {[%clk 0:01:09.7]}
37... Qb7 {[%clk 0:00:02.7]} 38. Qa4 {[%clk 0:01:07.2]} 38... Kh6 {[%clk
0:00:02.6]} 39. Ra7 {[%clk 0:01:06.6]} 39... Qb8 {[%clk 0:00:03]} 40. Ra8 {[%clk
0:01:02]} 40... Qb7 {[%clk 0:00:01.5]} 41. Qa6 {[%clk 0:00:56.1]} 41... Qf7
{[%clk 0:00:02]} 42. Qc8 {[%clk 0:00:53.8]} 42... Be7 {[%clk 0:00:01.5]} 43. Ne5
{[%clk 0:00:50.8]} 43... Qg7 {[%clk 0:00:01.3]} 44. Qxe6+ {[%clk 0:00:50.2]}
44... Bf6 {[%clk 0:00:01]} 45. Qxf5 {[%clk 0:00:49.8]} 45... g3 {[%clk
0:00:01.4]} 46. Qh3+ {[%clk 0:00:49]} 1-0

[Event "Early-Titled-Tuesday-Blitz-February-13-2024"]
[Site "Chess.com"]
[Date "2024.02.13"]
[Round "9"]
[White "secretsuperstar7"]
[Black "Nikolakis2014"]
[Result "0-1"]
[WhiteElo "2529"]
[BlackElo "2716"]
[TimeControl "180+1"]
[EndTime "9:48:17 PST"]
[Termination "Nikolakis2014 won by resignation"]

1. c4 {[%clk 0:02:56]} 1... Nf6 {[%clk 0:02:59]} 2. Nc3 {[%clk 0:02:55.6]} 2...
e6 {[%clk 0:02:59.1]} 3. e4 {[%clk 0:02:53.2]} 3... d5 {[%clk 0:02:58]} 4. e5
{[%clk 0:02:53.2]} 4... d4 {[%clk 0:02:58.2]} 5. exf6 {[%clk 0:02:53.7]} 5...
dxc3 {[%clk 0:02:57.5]} 6. bxc3 {[%clk 0:02:54.3]} 6... Qxf6 {[%clk 0:02:56.5]}
7. d4 {[%clk 0:02:53.5]} 7... b6 {[%clk 0:02:52.2]} 8. Be2 {[%clk 0:02:50.4]}
8... Nd7 {[%clk 0:02:51.6]} 9. Bf3 {[%clk 0:02:47.9]} 9... Rb8 {[%clk
0:02:51.6]} 10. Ne2 {[%clk 0:02:47.3]} 10... Bd6 {[%clk 0:02:51.5]} 11. O-O
{[%clk 0:02:45.2]} 11... O-O {[%clk 0:02:49.1]} 12. Ng3 {[%clk 0:02:43.3]} 12...
Qh4 {[%clk 0:02:44.7]} 13. Bc6 {[%clk 0:02:27.2]} 13... Nf6 {[%clk 0:02:42]} 14.
Qd3 {[%clk 0:02:05]} 14... Ba6 {[%clk 0:02:26.7]} 15. f4 {[%clk 0:01:48.6]}
15... g6 {[%clk 0:02:06.7]} 16. Ne4 {[%clk 0:01:44.9]} 16... Nxe4 {[%clk
0:02:05.9]} 17. Bxe4 {[%clk 0:01:44.2]} 17... c5 {[%clk 0:02:01]} 18. Be3 {[%clk
0:01:37.7]} 18... cxd4 {[%clk 0:01:58.3]} 19. cxd4 {[%clk 0:01:36.6]} 19... Rbc8
{[%clk 0:01:57.5]} 20. Rac1 {[%clk 0:01:36.6]} 20... Qe7 {[%clk 0:01:57.3]} 21.
Qb3 {[%clk 0:01:31.5]} 21... Rfd8 {[%clk 0:01:55.6]} 22. Rfd1 {[%clk 0:01:29]}
22... Qc7 {[%clk 0:01:49.3]} 23. g3 {[%clk 0:01:18.6]} 23... Bxc4 {[%clk
0:01:45.4]} 24. Qb1 {[%clk 0:01:11.2]} 24... b5 {[%clk 0:01:43.3]} 25. h4 {[%clk
0:01:03.9]} 25... Qa5 {[%clk 0:01:39.9]} 26. h5 {[%clk 0:01:02.1]} 26... Qxa2
{[%clk 0:01:31]} 27. hxg6 {[%clk 0:01:01.8]} 27... hxg6 {[%clk 0:01:30.3]} 28.
Bxg6 {[%clk 0:00:45.3]} 28... Qxb1 {[%clk 0:01:29.5]} 29. Bxb1 {[%clk
0:00:44.5]} 29... a5 {[%clk 0:01:26.9]} 30. Be4 {[%clk 0:00:38.7]} 30... Bd5
{[%clk 0:01:21.3]} 31. Bd3 {[%clk 0:00:35]} 31... b4 {[%clk 0:01:19.1]} 32. Bb5
{[%clk 0:00:30.8]} 32... b3 {[%clk 0:01:15.4]} 33. Bd2 {[%clk 0:00:30.5]} 33...
Ra8 {[%clk 0:00:39.5]} 34. Ra1 {[%clk 0:00:28.9]} 34... Rdb8 {[%clk 0:00:38.8]}
35. Ba4 {[%clk 0:00:24.8]} 35... b2 {[%clk 0:00:38.9]} 36. Rab1 {[%clk
0:00:25.2]} 36... Be4 {[%clk 0:00:39.1]} 37. Bc3 {[%clk 0:00:23.8]} 37... Bxb1
{[%clk 0:00:35.5]} 38. Rxb1 {[%clk 0:00:24.7]} 38... Bb4 {[%clk 0:00:35.3]} 39.
Bxb2 {[%clk 0:00:17.1]} 39... Bc3 {[%clk 0:00:35.2]} 40. Bxc3 {[%clk 0:00:17.1]}
40... Rxb1+ {[%clk 0:00:35]} 41. Kf2 {[%clk 0:00:17.6]} 41... Rc8 {[%clk
0:00:34.6]} 42. Bd2 {[%clk 0:00:09.6]} 42... Ra1 {[%clk 0:00:32.5]} 43. Bd7
{[%clk 0:00:05.5]} 43... Rc2 {[%clk 0:00:32.4]} 44. Ke3 {[%clk 0:00:05.9]} 44...
Ra3+ {[%clk 0:00:32.4]} 45. Ke2 {[%clk 0:00:05.3]} 45... Raa2 {[%clk 0:00:33]}
0-1

[Event "Early-Titled-Tuesday-Blitz-February-13-2024"]
[Site "Chess.com"]
[Date "2024.02.13"]
[Round "9"]
[White "CSB7"]
[Black "Alexander_Donchenko"]
[Result "0-1"]
[WhiteElo "2766"]
[BlackElo "2921"]
[TimeControl "180+1"]
[EndTime "9:48:18 PST"]
[Termination "Alexander_Donchenko won by resignation"]

1. e4 {[%clk 0:03:00.9]} 1... c5 {[%clk 0:02:59.8]} 2. Nf3 {[%clk 0:03:00.5]}
2... e6 {[%clk 0:02:59.7]} 3. d4 {[%clk 0:02:56.3]} 3... cxd4 {[%clk 0:02:58.4]}
4. Nxd4 {[%clk 0:02:57.2]} 4... Nc6 {[%clk 0:02:58]} 5. Nc3 {[%clk 0:02:57.2]}
5... Nf6 {[%clk 0:02:57.9]} 6. Nxc6 {[%clk 0:02:51.7]} 6... bxc6 {[%clk
0:02:57.2]} 7. e5 {[%clk 0:02:52.4]} 7... Nd5 {[%clk 0:02:57.1]} 8. Ne4 {[%clk
0:02:53.1]} 8... Qc7 {[%clk 0:02:57.3]} 9. f4 {[%clk 0:02:52]} 9... Qb6 {[%clk
0:02:57.2]} 10. c4 {[%clk 0:02:50.7]} 10... Bb4+ {[%clk 0:02:55.3]} 11. Ke2
{[%clk 0:02:51.1]} 11... f5 {[%clk 0:02:55.4]} 12. exf6 {[%clk 0:02:48.9]} 12...
Nxf6 {[%clk 0:02:53.4]} 13. Be3 {[%clk 0:02:47.7]} 13... Qc7 {[%clk 0:02:48.4]}
14. Nxf6+ {[%clk 0:02:41.2]} 14... gxf6 {[%clk 0:02:49.3]} 15. Kf2 {[%clk
0:02:34.2]} 15... c5 {[%clk 0:02:44.9]} 16. a3 {[%clk 0:02:14.7]} 16... Ba5
{[%clk 0:02:44.5]} 17. Qh5+ {[%clk 0:02:13.7]} 17... Ke7 {[%clk 0:02:40.4]} 18.
Qxc5+ {[%clk 0:01:42.8]} 18... Qxc5 {[%clk 0:02:39]} 19. Bxc5+ {[%clk
0:01:43.7]} 19... d6 {[%clk 0:02:39.3]} 20. Be3 {[%clk 0:01:44.2]} 20... Bb7
{[%clk 0:02:31.4]} 21. Be2 {[%clk 0:01:39.4]} 21... Rhc8 {[%clk 0:02:27.6]} 22.
Rhc1 {[%clk 0:01:35.5]} 22... Bb6 {[%clk 0:02:20.1]} 23. Bxb6 {[%clk 0:01:13.4]}
23... axb6 {[%clk 0:02:21]} 24. Bf3 {[%clk 0:01:13.8]} 24... d5 {[%clk
0:02:20.6]} 25. cxd5 {[%clk 0:01:03.7]} 25... exd5 {[%clk 0:02:21.5]} 26. Ke3
{[%clk 0:00:54]} 26... Kd6 {[%clk 0:02:21]} 27. Kd2 {[%clk 0:00:45.1]} 27... Ra4
{[%clk 0:02:17.3]} 28. Rxc8 {[%clk 0:00:40.4]} 28... Bxc8 {[%clk 0:02:18.2]} 29.
g3 {[%clk 0:00:39.8]} 29... Rd4+ {[%clk 0:02:16]} 30. Ke3 {[%clk 0:00:38.1]}
30... Rc4 {[%clk 0:02:16.4]} 31. Rd1 {[%clk 0:00:29.1]} 31... Be6 {[%clk
0:02:16.2]} 32. f5 {[%clk 0:00:23.1]} 32... Bf7 {[%clk 0:02:14.8]} 33. Rd4
{[%clk 0:00:15.5]} 33... Rc2 {[%clk 0:02:13.9]} 34. Rd2 {[%clk 0:00:15.2]} 34...
Rc1 {[%clk 0:02:14.1]} 35. g4 {[%clk 0:00:12.5]} 35... Ke5 {[%clk 0:02:13.8]}
36. h4 {[%clk 0:00:12]} 36... Rh1 {[%clk 0:02:12.6]} 37. Kf2 {[%clk 0:00:04]}
37... Rc1 {[%clk 0:02:03.4]} 38. Ke3 {[%clk 0:00:03.9]} 38... h6 {[%clk
0:02:01.9]} 39. Re2 {[%clk 0:00:03.5]} 39... Rf1 {[%clk 0:01:51.3]} 40. Kd2+
{[%clk 0:00:03.1]} 40... Kf4 {[%clk 0:01:51.1]} 41. Bg2 {[%clk 0:00:03.7]} 41...
Rg1 {[%clk 0:01:50.8]} 42. Kc3 {[%clk 0:00:03.4]} 42... Kxg4 {[%clk 0:01:50.4]}
43. Kd4 {[%clk 0:00:03.2]} 43... Kxf5 {[%clk 0:01:49.9]} 44. Rf2+ {[%clk
0:00:02.8]} 44... Kg6 {[%clk 0:01:49.1]} 45. Bf3 {[%clk 0:00:02.7]} 45... Rc1
{[%clk 0:01:40.1]} 46. b4 {[%clk 0:00:03.2]} 46... Rc4+ {[%clk 0:01:38.6]} 47.
Kd3 {[%clk 0:00:03.8]} 47... f5 {[%clk 0:01:37.9]} 48. Rg2+ {[%clk 0:00:01.8]}
48... Kf6 {[%clk 0:01:38.3]} 49. h5 {[%clk 0:00:02.5]} 49... Rh4 {[%clk
0:01:35.2]} 50. Bd1 {[%clk 0:00:03]} 50... Rh3+ {[%clk 0:01:35.1]} 51. Kd4
{[%clk 0:00:03.6]} 51... Rxa3 {[%clk 0:01:34.7]} 52. Bc2 {[%clk 0:00:04.1]}
52... Rh3 {[%clk 0:01:33.2]} 53. Rf2 {[%clk 0:00:04.4]} 53... Rxh5 {[%clk
0:01:32.4]} 54. Bd3 {[%clk 0:00:03.9]} 54... Be6 {[%clk 0:01:31]} 55. Rc2 {[%clk
0:00:03.3]} 55... Rh4+ {[%clk 0:01:31.3]} 56. Ke3 {[%clk 0:00:03.5]} 56... Rxb4
{[%clk 0:01:31.3]} 57. Rc6 {[%clk 0:00:04.2]} 57... Ke5 {[%clk 0:01:31.1]} 58.
Rc8 {[%clk 0:00:04.1]} 58... Rb3 {[%clk 0:01:29.2]} 59. Re8 {[%clk 0:00:03]}
59... f4+ {[%clk 0:01:29]} 60. Kd2 {[%clk 0:00:03.3]} 60... Kd4 {[%clk 0:01:29]}
61. Bc2 {[%clk 0:00:02.4]} 61... Re3 {[%clk 0:01:29.2]} 62. Rh8 {[%clk
0:00:02.6]} 62... Rh3 {[%clk 0:01:27.7]} 63. Re8 {[%clk 0:00:02.6]} 63... Rh2+
{[%clk 0:01:27.8]} 64. Kc1 {[%clk 0:00:03.1]} 64... Kc3 {[%clk 0:01:27.1]} 65.
Bd1 {[%clk 0:00:02.5]} 65... Bf5 {[%clk 0:01:27.1]} 66. Rf8 {[%clk 0:00:02.7]}
66... Be4 {[%clk 0:01:26.4]} 67. Rc8+ {[%clk 0:00:02.8]} 67... Kd4 {[%clk
0:01:25.4]} 0-1

[Event "Early-Titled-Tuesday-Blitz-February-13-2024"]
[Site "Chess.com"]
[Date "2024.02.13"]
[Round "9"]
[White "RobertoJBM"]
[Black "HATilay"]
[Result "0-1"]
[WhiteElo "2799"]
[BlackElo "2557"]
[TimeControl "180+1"]
[EndTime "9:48:18 PST"]
[Termination "HATilay won on time"]

1. d4 {[%clk 0:03:00.9]} 1... Nf6 {[%clk 0:02:59.9]} 2. Nf3 {[%clk 0:02:59.9]}
2... d5 {[%clk 0:02:59.6]} 3. e3 {[%clk 0:02:59.4]} 3... e6 {[%clk 0:02:58.5]}
4. Bd3 {[%clk 0:02:58.9]} 4... c5 {[%clk 0:02:59.1]} 5. c3 {[%clk 0:02:57.3]}
5... Nc6 {[%clk 0:02:59.8]} 6. O-O {[%clk 0:02:56.5]} 6... g6 {[%clk 0:02:55.4]}
7. Nbd2 {[%clk 0:02:55.4]} 7... Bg7 {[%clk 0:02:56]} 8. dxc5 {[%clk 0:02:55.5]}
8... Nd7 {[%clk 0:02:55.9]} 9. Nb3 {[%clk 0:02:53.9]} 9... a5 {[%clk 0:02:49.9]}
10. a4 {[%clk 0:02:53.8]} 10... O-O {[%clk 0:02:47]} 11. e4 {[%clk 0:02:48.3]}
11... Nf6 {[%clk 0:02:09]} 12. exd5 {[%clk 0:02:43.7]} 12... Nxd5 {[%clk
0:02:09.1]} 13. Re1 {[%clk 0:02:21.3]} 13... h6 {[%clk 0:02:05.2]} 14. Qe2
{[%clk 0:02:11.2]} 14... Qc7 {[%clk 0:02:01.7]} 15. g3 {[%clk 0:02:00.9]} 15...
Rd8 {[%clk 0:01:37.5]} 16. Bd2 {[%clk 0:01:48.1]} 16... b6 {[%clk 0:01:30]} 17.
cxb6 {[%clk 0:01:21.8]} 17... Qxb6 {[%clk 0:01:30.1]} 18. Bb5 {[%clk 0:01:20.2]}
18... Bb7 {[%clk 0:01:23.5]} 19. Rad1 {[%clk 0:01:17]} 19... Rac8 {[%clk
0:01:07.1]} 20. c4 {[%clk 0:01:07.8]} 20... Ndb4 {[%clk 0:01:02.2]} 21. Be3
{[%clk 0:01:07.1]} 21... Qc7 {[%clk 0:01:00.2]} 22. Rxd8+ {[%clk 0:00:59.4]}
22... Rxd8 {[%clk 0:00:59.6]} 23. Rd1 {[%clk 0:00:59.5]} 23... Rxd1+ {[%clk
0:00:52.6]} 24. Qxd1 {[%clk 0:01:00.4]} 24... Bxb2 {[%clk 0:00:47]} 25. Bxh6
{[%clk 0:00:56.4]} 25... Ne5 {[%clk 0:00:41.4]} 26. Nxe5 {[%clk 0:00:35.2]}
26... Qxe5 {[%clk 0:00:42.1]} 27. Nxa5 {[%clk 0:00:27.4]} 27... Be4 {[%clk
0:00:21.1]} 28. Nb3 {[%clk 0:00:10.3]} 28... Nd3 {[%clk 0:00:14.7]} 29. Be3
{[%clk 0:00:09.7]} 29... Qf5 {[%clk 0:00:10.8]} 30. Nd4 {[%clk 0:00:08.2]} 30...
Bxd4 {[%clk 0:00:10.5]} 31. Bxd4 {[%clk 0:00:09.1]} 31... Bf3 {[%clk 0:00:11.1]}
32. Qd2 {[%clk 0:00:07.7]} 32... Qh3 {[%clk 0:00:08.7]} 0-1

[Event "Early-Titled-Tuesday-Blitz-February-13-2024"]
[Site "Chess.com"]
[Date "2024.02.13"]
[Round "9"]
[White "egnfanclub"]
[Black "MiguelEduardoGB"]
[Result "1-0"]
[WhiteElo "2359"]
[BlackElo "2155"]
[TimeControl "180+1"]
[EndTime "9:48:19 PST"]
[Termination "egnfanclub won on time"]

1. e4 {[%clk 0:03:00.9]} 1... c6 {[%clk 0:02:57.9]} 2. d4 {[%clk 0:03:00.4]}
2... d5 {[%clk 0:02:57.3]} 3. exd5 {[%clk 0:03:01.3]} 3... cxd5 {[%clk
0:02:57.5]} 4. c4 {[%clk 0:03:00]} 4... Nf6 {[%clk 0:02:57.7]} 5. Nc3 {[%clk
0:03:00.4]} 5... e6 {[%clk 0:02:58]} 6. Nf3 {[%clk 0:03:00.1]} 6... Be7 {[%clk
0:02:58.3]} 7. cxd5 {[%clk 0:02:51.3]} 7... Nxd5 {[%clk 0:02:57.2]} 8. Bd3
{[%clk 0:02:51.4]} 8... a6 {[%clk 0:02:54.5]} 9. O-O {[%clk 0:02:51.4]} 9... Nc6
{[%clk 0:02:54.2]} 10. Re1 {[%clk 0:02:51.8]} 10... b5 {[%clk 0:02:35.8]} 11.
Nxd5 {[%clk 0:02:46.1]} 11... Qxd5 {[%clk 0:02:20]} 12. Be4 {[%clk 0:02:41.7]}
12... Qd7 {[%clk 0:01:53.3]} 13. Ne5 {[%clk 0:02:40.9]} 13... Nxe5 {[%clk
0:01:52]} 14. Bxa8 {[%clk 0:02:40.6]} 14... Ng6 {[%clk 0:01:50.1]} 15. Be4
{[%clk 0:02:10.8]} 15... O-O {[%clk 0:01:49.1]} 16. a4 {[%clk 0:02:10.6]} 16...
b4 {[%clk 0:01:42.8]} 17. Be3 {[%clk 0:02:00.7]} 17... a5 {[%clk 0:01:42.5]} 18.
Rc1 {[%clk 0:01:59.7]} 18... Bb7 {[%clk 0:01:31.6]} 19. Qf3 {[%clk 0:01:54.9]}
19... Bxe4 {[%clk 0:01:31]} 20. Qxe4 {[%clk 0:01:55.8]} 20... Bf6 {[%clk
0:01:30]} 21. Qc6 {[%clk 0:01:53.8]} 21... Qd8 {[%clk 0:01:29.2]} 22. Qc7 {[%clk
0:01:51.3]} 22... Qa8 {[%clk 0:01:27.8]} 23. Rc4 {[%clk 0:01:37.7]} 23... Ne7
{[%clk 0:01:19.1]} 24. Qg3 {[%clk 0:01:29.9]} 24... Nd5 {[%clk 0:01:15.8]} 25.
Bg5 {[%clk 0:01:26.9]} 25... Bxg5 {[%clk 0:00:52.7]} 26. Qxg5 {[%clk 0:01:27.8]}
26... h6 {[%clk 0:00:48.3]} 27. Qg3 {[%clk 0:01:27]} 27... Qe8 {[%clk 0:00:47]}
28. b3 {[%clk 0:01:22.2]} 28... Qd7 {[%clk 0:00:42.1]} 29. Qe5 {[%clk
0:01:13.5]} 29... Rd8 {[%clk 0:00:32.3]} 30. g3 {[%clk 0:01:13.2]} 30... Nc3
{[%clk 0:00:27.2]} 31. Qxa5 {[%clk 0:01:01.2]} 31... Rf8 {[%clk 0:00:18.8]} 32.
Qxb4 {[%clk 0:01:00.6]} 32... Nd5 {[%clk 0:00:18.3]} 33. Qc5 {[%clk 0:00:59.8]}
33... Qd8 {[%clk 0:00:16.5]} 34. b4 {[%clk 0:00:59.2]} 34... Qg5 {[%clk
0:00:16.3]} 35. b5 {[%clk 0:00:55.2]} 35... Qg6 {[%clk 0:00:12.9]} 36. a5 {[%clk
0:00:53.5]} 36... Nf4 {[%clk 0:00:13]} 37. Qe5 {[%clk 0:00:45.7]} 37... Nd3
{[%clk 0:00:12.7]} 38. Qe4 {[%clk 0:00:45.8]} 38... Nxe1 {[%clk 0:00:11]} 39.
Qxe1 {[%clk 0:00:45.8]} 39... Qd3 {[%clk 0:00:09.3]} 40. Qc1 {[%clk 0:00:45.4]}
40... Rb8 {[%clk 0:00:08.6]} 41. b6 {[%clk 0:00:44.6]} 41... Qe4 {[%clk
0:00:04.3]} 42. Rc8+ {[%clk 0:00:42.8]} 42... Rxc8 {[%clk 0:00:04.6]} 43. Qxc8+
{[%clk 0:00:43.5]} 43... Kh7 {[%clk 0:00:05.4]} 44. Qc1 {[%clk 0:00:39.7]} 44...
Qb7 {[%clk 0:00:04.2]} 45. Qb1+ {[%clk 0:00:39.7]} 45... g6 {[%clk 0:00:03.9]}
46. a6 {[%clk 0:00:40]} 1-0

[Event "Early-Titled-Tuesday-Blitz-February-13-2024"]
[Site "Chess.com"]
[Date "2024.02.13"]
[Round "9"]
[White "BogdanDeac"]
[Black "wonderfultime"]
[Result "0-1"]
[WhiteElo "3001"]
[BlackElo "3083"]
[TimeControl "180+1"]
[EndTime "9:48:20 PST"]
[Termination "wonderfultime won on time"]

1. d4 {[%clk 0:03:00.9]} 1... d5 {[%clk 0:03:00.3]} 2. Nf3 {[%clk 0:03:01.1]}
2... Nf6 {[%clk 0:03:00.6]} 3. Bf4 {[%clk 0:03:01.7]} 3... c5 {[%clk 0:02:59.7]}
4. e3 {[%clk 0:03:02]} 4... Qb6 {[%clk 0:02:59.9]} 5. Nc3 {[%clk 0:02:59.1]}
5... Bd7 {[%clk 0:02:59.6]} 6. Rb1 {[%clk 0:02:29.5]} 6... e6 {[%clk 0:02:58.7]}
7. Bd3 {[%clk 0:02:26.8]} 7... Bd6 {[%clk 0:02:41.8]} 8. dxc5 {[%clk 0:02:15.3]}
8... Qxc5 {[%clk 0:02:29.6]} 9. O-O {[%clk 0:02:06.2]} 9... Bxf4 {[%clk
0:02:24.4]} 10. exf4 {[%clk 0:02:07.1]} 10... O-O {[%clk 0:02:24.8]} 11. Ne5
{[%clk 0:02:02.1]} 11... Bc6 {[%clk 0:02:12.2]} 12. Ne2 {[%clk 0:01:53.4]} 12...
g6 {[%clk 0:02:00.2]} 13. c3 {[%clk 0:01:50.8]} 13... Bb5 {[%clk 0:01:42.3]} 14.
Nd4 {[%clk 0:01:37.7]} 14... Bxd3 {[%clk 0:01:42.3]} 15. Qxd3 {[%clk 0:01:38.6]}
15... Nc6 {[%clk 0:01:39.1]} 16. Ndxc6 {[%clk 0:01:04.5]} 16... bxc6 {[%clk
0:01:38]} 17. Qd4 {[%clk 0:01:04.9]} 17... Ne4 {[%clk 0:01:01.8]} 18. Rfe1
{[%clk 0:00:26.8]} 18... Qb6 {[%clk 0:00:30.1]} 19. Nd7 {[%clk 0:00:20.7]} 19...
Qxd4 {[%clk 0:00:29.8]} 20. cxd4 {[%clk 0:00:21.6]} 20... Rfc8 {[%clk
0:00:28.7]} 21. f3 {[%clk 0:00:17.3]} 21... Nd6 {[%clk 0:00:28.5]} 22. Rbc1
{[%clk 0:00:16.5]} 22... Rc7 {[%clk 0:00:23]} 23. Ne5 {[%clk 0:00:16]} 23...
Rac8 {[%clk 0:00:23.7]} 24. Re2 {[%clk 0:00:05]} 24... c5 {[%clk 0:00:15.4]} 25.
dxc5 {[%clk 0:00:05.3]} 25... Rxc5 {[%clk 0:00:16.3]} 26. Rxc5 {[%clk
0:00:05.7]} 26... Rxc5 {[%clk 0:00:17.2]} 27. g4 {[%clk 0:00:06.3]} 27... Rc7
{[%clk 0:00:15.6]} 28. Kg2 {[%clk 0:00:06.6]} 28... f6 {[%clk 0:00:16]} 29. Nd3
{[%clk 0:00:06.4]} 29... Kf7 {[%clk 0:00:16.6]} 30. b4 {[%clk 0:00:03.8]} 30...
Nb5 {[%clk 0:00:15.2]} 31. Nc5 {[%clk 0:00:02.7]} 31... Rc6 {[%clk 0:00:09.8]}
32. a4 {[%clk 0:00:01.5]} 32... Nc7 {[%clk 0:00:10]} 0-1